bitfinex/quotes_BTCUSD_20240731
["timestamp","ask_amount","ask_price","bid_price","bid_amount"]
[1722418432880,0.00083,66416.0,66415.0,2.18795153]
[1722418433699,0.00083,66416.0,66415.0,2.15815794]
[1722418433874,0.00083,66416.0,66415.0,2.45929394]
[1722418434613,0.00083,66416.0,66415.0,2.44529394]
[1722418434842,0.00083,66416.0,66415.0,2.43129394]
[1722418435022,0.00083,66416.0,66415.0,2.45929394]
[1722418435401,0.00083,66416.0,66415.0,2.44529394]
[1722418435895,0.00083,66416.0,66415.0,2.45929394]
[1722418436274,0.00083,66416.0,66415.0,2.45849286]
[1722418436514,0.00083,66416.0,66415.0,2.44449286]
[1722418437127,0.00083,66416.0,66415.0,2.45849286]
[1722418437711,0.00083,66416.0,66415.0,2.15735686]
[1722418438252,0.00083,66416.0,66415.0,2.45849286]
[1722418440215,0.00083,66416.0,66415.0,2.45801346]
[1722418441176,0.00083,66416.0,66415.0,2.15687746]
[1722418441406,0.00083,66416.0,66415.0,2.09197746]
[1722418442585,0.00083,66416.0,66415.0,2.39311346]
[1722418442822,0.00083,66416.0,66415.0,2.09197746]
[1722418443300,0.00083,66416.0,66415.0,2.09200171]
[1722418443538,0.00083,66416.0,66415.0,1.98940171]
[1722418443775,0.15013,66416.0,66415.0,1.96440171]
[1722418443984,0.15013,66416.0,66415.0,1.53041586]
[1722418444183,0.15013,66416.0,66415.0,1.47762071]
[1722418445414,0.15013,66416.0,66415.0,1.71576156]
[1722418445614,0.15013,66416.0,66415.0,1.47762071]
[1722418445969,0.15013,66416.0,66415.0,1.56392071]
[1722418446380,0.15013,66416.0,66415.0,1.43881468]
[1722418446573,0.15013,66416.0,66415.0,1.563933]
[1722418447007,0.15013,66416.0,66415.0,1.80216975]
[1722418447215,0.15013,66416.0,66415.0,1.563933]
[1722418447870,0.15013,66416.0,66415.0,1.43881468]
[1722418448024,0.15013,66416.0,66415.0,1.56393385]
[1722418452698,0.06703,66416.0,66415.0,1.56393385]
[1722418452930,0.06703,66416.0,66415.0,1.43881468]
[1722418453309,0.00083,66416.0,66415.0,1.56393137]
[1722418456677,0.00083,66416.0,66415.0,1.43881468]
[1722418456850,0.00083,66416.0,66415.0,1.56393137]
[1722418460616,0.00083,66416.0,66415.0,1.96656737]
[1722418461501,0.00083,66416.0,66415.0,1.96856737]
[1722418461708,0.00083,66416.0,66415.0,2.17709233]
[1722418461909,0.00083,66416.0,66415.0,2.47822833]
[1722418463249,0.00083,66416.0,66415.0,2.46422833]
[1722418463476,0.00083,66416.0,66415.0,2.46302761]
[1722418463679,0.00083,66416.0,66415.0,2.47702761]
[1722418464242,0.00083,66416.0,66415.0,2.46302761]
[1722418464445,0.00083,66416.0,66415.0,2.47702761]
[1722418466337,0.00083,66416.0,66415.0,2.50821891]
[1722418466875,0.00083,66416.0,66415.0,2.52256037]
[1722418467275,0.00083,66416.0,66415.0,2.50856037]
[1722418467797,0.00083,66416.0,66415.0,2.52256037]
[1722418469768,0.00083,66416.0,66415.0,2.22142437]
[1722418470167,0.00083,66416.0,66415.0,2.52256037]
[1722418470402,0.00083,66416.0,66415.0,2.52255815]
[1722418470810,0.00083,66416.0,66415.0,2.22142215]
[1722418473753,0.00083,66416.0,66415.0,2.22181002]
[1722418476747,0.00083,66416.0,66415.0,1.9116393]
[1722418477358,0.00083,66416.0,66415.0,1.86645068]
[1722418478704,0.00083,66416.0,66415.0,2.22218521]
[1722418481814,0.00083,66416.0,66415.0,1.86645068]
[1722418482020,0.00083,66416.0,66415.0,2.22206009]
[1722418483739,0.00083,66416.0,66415.0,2.32206009]
[1722418484554,0.14493,66416.0,66415.0,2.00907136]
[1722418484776,0.14493,66416.0,66415.0,2.09537136]
[1722418485292,0.14493,66416.0,66415.0,2.09668463]
[1722418486681,0.14493,66416.0,66415.0,2.09672193]
[1722418488833,0.14493,66416.0,66415.0,2.09641184]
[1722418489205,0.14493,66416.0,66415.0,1.91006571]
[1722418489419,0.14493,66416.0,66415.0,2.14938056]
[1722418489614,0.14493,66416.0,66415.0,2.09658392]
[1722418491197,0.14493,66416.0,66415.0,1.91006571]
[1722418491744,0.14493,66416.0,66415.0,2.09595991]
[1722418491950,0.14493,66416.0,66415.0,2.0960207]
[1722418492466,0.14493,66416.0,66415.0,2.14881572]
[1722418493291,0.14493,66416.0,66415.0,1.96286086]
[1722418493430,0.14493,66416.0,66415.0,2.14884313]
[1722418493636,0.14493,66416.0,66415.0,1.82470713]
[1722418495117,0.14493,66416.0,66415.0,1.81470713]
[1722418495374,0.14493,66416.0,66415.0,1.5759354]
[1722418495816,0.14493,66416.0,66415.0,1.81467697]
[1722418496049,0.14493,66416.0,66415.0,1.81465382]
[1722418496248,0.06253,66416.0,66415.0,1.82465382]
[1722418496430,0.06253,66416.0,66415.0,1.56593125]
[1722418497868,0.06253,66416.0,66415.0,1.80460356]
[1722418498482,0.06253,66416.0,66415.0,1.80360356]
[1722418498692,0.06253,66416.0,66415.0,1.80260356]
[1722418498900,0.06253,66416.0,66415.0,1.56393089]
[1722418501213,0.14263,66416.0,66415.0,0.86636625]
[1722418501434,0.14263,66416.0,66415.0,0.30466225]
[1722418501645,0.14263,66416.0,66415.0,0.16554604]
[1722418501646,0.18781496,66416.0,66415.0,0.16554604]
[1722418501850,0.18780152,66416.0,66415.0,0.16554604]
[1722418502058,0.18780152,66416.0,66415.0,0.15154604]
[1722418502059,0.18780304,66416.0,66415.0,0.15154604]
[1722418502259,0.14263,66416.0,66415.0,0.16554604]
[1722418502663,0.14968568,66416.0,66415.0,0.17954604]
[1722418502868,0.14968568,66416.0,66415.0,0.15154604]
[1722418503287,0.14968568,66416.0,66415.0,0.16554604]
[1722418504350,0.14968568,66416.0,66415.0,0.17954604]
[1722418504557,0.14968568,66416.0,66415.0,0.16554604]
[1722418504761,0.14968568,66416.0,66415.0,0.60325004]
[1722418505164,0.14263,66416.0,66415.0,1.00068604]
[1722418505371,0.14263,66416.0,66415.0,1.44895639]
[1722418505372,0.00083,66416.0,66415.0,1.44895639]
[1722418505580,0.00789365,66416.0,66415.0,1.46295639]
[1722418505784,0.00083,66416.0,66415.0,1.45495639]
[1722418506402,0.06103,66416.0,66415.0,1.44095639]
[1722418506603,0.13793,66416.0,66415.0,1.44095639]
[1722418507518,0.13793,66416.0,66415.0,1.42695639]
[1722418507721,0.13793,66416.0,66415.0,1.44095639]
[1722418508066,0.13793,66416.0,66415.0,1.31582204]
[1722418508428,0.13793,66416.0,66415.0,1.45495267]
[1722418508653,0.13793,66416.0,66415.0,1.32982204]
[1722418508769,0.13793,66416.0,66415.0,1.45495267]
[1722418508991,0.13793,66416.0,66415.0,1.36865267]
[1722418509190,0.13793,66416.0,66415.0,1.35465267]
[1722418509596,0.13793,66416.0,66415.0,1.36865267]
[1722418509808,0.13793,66416.0,66415.0,1.35865267]
[1722418510009,0.13793,66416.0,66415.0,1.36865267]
[1722418510229,0.13793,66416.0,66415.0,1.35465267]
[1722418511289,0.13793,66416.0,66415.0,1.34465267]
[1722418511700,0.13793,66416.0,66415.0,1.35865267]
[1722418511887,0.13793,66416.0,66415.0,1.36865267]
[1722418512245,0.13793,66416.0,66415.0,1.35865267]
[1722418512869,0.13793,66416.0,66415.0,0.93238604]
[1722418513893,0.13793,66416.0,66415.0,0.63125004]
[1722418514092,0.13793,66416.0,66415.0,0.17954604]
[1722418516262,0.288496,66416.0,66415.0,0.17954604]
[1722418517452,0.589628,66416.0,66415.0,0.17954604]
[1722418518573,0.288496,66416.0,66415.0,0.17954604]
[1722418519030,0.13793,66416.0,66415.0,0.17954604]
[1722418519595,0.288496,66416.0,66415.0,0.17954604]
[1722418521822,0.13793,66416.0,66415.0,0.17954604]
[1722418522770,0.13793,66416.0,66415.0,0.63125004]
[1722418523020,0.06103,66416.0,66415.0,0.93238604]
[1722418523224,0.00083,66416.0,66415.0,1.23352204]
[1722418523372,0.00083,66416.0,66415.0,1.24352204]
[1722418523954,0.00083,66416.0,66415.0,1.3686527]
[1722418526201,0.00083,66416.0,66415.0,1.0575167]
[1722418526202,0.06443,66416.0,66415.0,1.0575167]
[1722418526403,0.14423,66416.0,66415.0,1.0575167]
[1722418526623,0.14423,66416.0,66415.0,0.93238604]
[1722418536760,0.06443,66416.0,66415.0,0.93238604]
[1722418539512,0.06443,66416.0,66415.0,0.63125004]
[1722418540666,0.00083,66416.0,66415.0,1.44095977]
[1722418542541,0.00083,66416.0,66415.0,1.44095188]
[1722418543622,0.00083,66416.0,66415.0,1.47095188]
[1722418543818,0.00083,66416.0,66415.0,1.51645188]
[1722418545068,0.00083,66416.0,66415.0,1.45095188]
[1722418545854,0.00083,66416.0,66415.0,1.32582204]
[1722418546055,0.00083,66416.0,66415.0,1.45094065]
[1722418547548,0.00083,66416.0,66415.0,1.36864065]
[1722418547758,0.06223,66416.0,66415.0,1.36864065]
[1722418548155,0.06223,66416.0,66415.0,1.06750465]
[1722418549190,0.06223,66416.0,66415.0,1.06751602]
[1722418556082,0.06223,66416.0,66415.0,1.05751695]
[1722418559789,0.07032871,66416.0,66415.0,1.05751695]
[1722418559989,0.06223,66416.0,66415.0,1.05751695]
[1722418560186,0.06223,66416.0,66415.0,0.93238604]
[1722418560394,0.149629,66416.0,66415.0,0.17954604]
[1722418560697,0.194793,66416.0,66415.0,0.17954604]
[1722418560900,0.149629,66416.0,66415.0,0.17954604]
[1722418562572,0.194793,66416.0,66415.0,0.17954604]
[1722418562791,0.19479705,66416.0,66415.0,0.17954604]
[1722418562997,0.149629,66416.0,66415.0,0.17954604]
[1722418564201,0.19479705,66416.0,66415.0,0.17954604]
[1722418564934,0.149629,66416.0,66415.0,0.17954604]
[1722418565128,0.19479705,66416.0,66415.0,0.17954604]
[1722418565330,0.149629,66416.0,66415.0,0.17954604]
[1722418566405,0.19480718,66416.0,66415.0,0.17954604]
[1722418569689,0.19481494,66416.0,66415.0,0.17954604]
[1722418571289,0.19481494,66416.0,66415.0,0.33011404]
[1722418571707,0.19481494,66416.0,66415.0,0.17954604]
[1722418572012,0.19751494,66416.0,66415.0,0.33011404]
[1722418572534,0.19751494,66416.0,66415.0,0.17954604]
[1722418573036,0.16109939,66416.0,66415.0,0.17954604]
[1722418573252,0.20629049,66416.0,66415.0,0.17954604]
[1722418574546,0.16109939,66416.0,66415.0,0.17954604]
[1722418574759,0.5526136,66416.0,66415.0,0.17954604]
[1722418574916,0.91392939,66416.0,66415.0,0.17954604]
[1722418575118,0.91392939,66416.0,66415.0,0.028913]
[1722418575119,0.61279739,66416.0,66415.0,0.028913]
[1722418575518,0.61279739,66416.0,66415.0,0.014913]
[1722418575950,0.61279739,66416.0,66415.0,0.028913]
[1722418576392,0.61279739,66416.0,66415.0,0.014913]
[1722418576393,0.91392939,66416.0,66415.0,0.014913]
[1722418576773,0.91392939,66416.0,66415.0,0.028913]
[1722418576969,0.91392939,66416.0,66415.0,0.014913]
[1722418577179,0.91392939,66416.0,66415.0,0.000913]
[1722418577378,0.91392939,66416.0,66415.0,0.014913]
[1722418577701,0.91392939,66416.0,66415.0,0.028913]
[1722418578052,0.61279739,66416.0,66415.0,0.028913]
[1722418578253,0.72570159,66416.0,66415.0,0.028913]
[1722418578461,0.72569859,66416.0,66415.0,0.028913]
[1722418578661,0.61279739,66416.0,66415.0,0.028913]
[1722418578861,0.72569683,66416.0,66415.0,0.028913]
[1722418579755,0.72568399,66416.0,66415.0,0.028913]
[1722418580661,0.72567262,66416.0,66415.0,0.028913]
[1722418581118,1.02680462,66416.0,66415.0,0.028913]
[1722418581712,0.72567262,66416.0,66415.0,0.028913]
[1722418582269,0.61279739,66416.0,66415.0,0.028913]
[1722418583148,0.91392939,66416.0,66415.0,0.028913]
[1722418583581,1.02678401,66416.0,66415.0,0.028913]
[1722418584013,0.91392939,66416.0,66415.0,0.028913]
[1722418584422,1.02676524,66416.0,66415.0,0.028913]
[1722418585152,0.91392939,66416.0,66415.0,0.028913]
[1722418586544,0.94291152,66416.0,66415.0,0.028913]
[1722418586829,1.54517552,66416.0,66415.0,0.028913]
[1722418587231,1.68050503,66416.0,66415.0,0.028913]
[1722418587446,1.54517552,66416.0,66415.0,0.028913]
[1722418587632,1.54517552,66416.0,66415.0,0.014913]
[1722418587930,1.54517552,66416.0,66415.0,0.013913]
[1722418588333,1.54517552,66416.0,66415.0,0.014913]
[1722418588774,1.54517552,66416.0,66415.0,0.000913]
[1722418589746,1.54539527,66416.0,66415.0,0.000913]
[1722418589956,1.54639527,66416.0,66415.0,0.000913]
[1722418590365,1.54539527,66416.0,66415.0,0.000913]
[1722418590798,1.54739527,66416.0,66415.0,0.000913]
[1722418591205,1.54839527,66416.0,66415.0,0.000913]
[1722418591758,1.69908959,66416.0,66415.0,0.000913]
[1722418592454,1.54839527,66416.0,66415.0,0.000913]
[1722418592967,1.51919339,66416.0,66415.0,0.000913]
[1722418593166,1.51919339,66416.0,66404.0,0.000913]
[1722418593167,0.893255,66405.0,66404.0,0.000913]
[1722418593368,0.979555,66405.0,66404.0,0.000913]
[1722418593614,1.31815443,66405.0,66404.0,0.000913]
[1722418594358,1.31815443,66405.0,66404.0,0.010913]
[1722418594578,1.43078806,66405.0,66404.0,0.010913]
[1722418594757,1.43078806,66405.0,66404.0,0.021913]
[1722418595484,1.43114331,66405.0,66404.0,0.021913]
[1722418595632,1.40129676,66405.0,66404.0,0.021913]
[1722418596237,1.28866313,66405.0,66404.0,0.021913]
[1722418598277,1.37868784,66405.0,66404.0,0.021913]
[1722418598629,1.28866313,66405.0,66404.0,0.021913]
[1722418598927,1.07750517,66405.0,66404.0,0.021913]
[1722418599132,1.07750222,66405.0,66404.0,0.021913]
[1722418599465,0.31353822,66405.0,66404.0,0.021913]
[1722418599668,0.14043675,66405.0,66404.0,0.021913]
[1722418599870,0.10305858,66405.0,66404.0,0.021913]
[1722418601967,0.01675858,66405.0,66404.0,0.021913]
[1722418602160,0.10305858,66405.0,66404.0,0.021913]
[1722418606112,0.10305858,66405.0,66404.0,0.17254604]
[1722418607154,0.21397251,66405.0,66404.0,0.17254604]
[1722418607311,0.16895858,66405.0,66404.0,0.17254604]
[1722418608481,0.31954958,66405.0,66404.0,0.17254604]
[1722418608686,0.16895858,66405.0,66404.0,0.17254604]
[1722418609949,0.31954958,66405.0,66404.0,0.17254604]
[1722418610216,0.16895858,66405.0,66404.0,0.17254604]
[1722418610369,0.16895858,66405.0,66404.0,0.021913]
[1722418610573,0.31954958,66405.0,66404.0,0.021913]
[1722418610755,0.21399509,66405.0,66404.0,0.021913]
[1722418610928,0.16895858,66405.0,66404.0,0.021913]
[1722418611435,0.31954958,66405.0,66404.0,0.021913]
[1722418612258,0.36459037,66405.0,66404.0,0.021913]
[1722418612436,0.21399937,66405.0,66404.0,0.021913]
[1722418612848,0.10305858,66405.0,66404.0,0.021913]
[1722418612995,0.10305858,66405.0,66404.0,0.097513]
[1722418613797,0.10305858,66405.0,66404.0,0.24814604]
[1722418614635,0.01675858,66405.0,66404.0,0.24814604]
[1722418616729,0.01675858,66405.0,66404.0,0.39873904]
[1722418616868,0.01675858,66405.0,66404.0,0.24814604]
[1722418619314,0.08438899,66405.0,66404.0,0.24814604]
[1722418619523,0.0618646,66405.0,66404.0,0.24814604]
[1722418620781,0.06187313,66405.0,66404.0,0.24814604]
[1722418620962,0.14817313,66405.0,66404.0,0.24814604]
[1722418621200,0.10305858,66405.0,66404.0,0.24814604]
[1722418621409,0.17073296,66405.0,66404.0,0.39873904]
[1722418621534,0.14817782,66405.0,66404.0,0.39873904]
[1722418621739,0.17073296,66405.0,66404.0,0.39873904]
[1722418621963,0.17073296,66405.0,66404.0,0.24814604]
[1722418621964,0.1481778,66405.0,66404.0,0.24814604]
[1722418622165,0.14817778,66405.0,66404.0,0.24814604]
[1722418622369,0.05304533,66405.0,66404.0,0.39873904]
[1722418622573,0.05304533,66405.0,66404.0,0.24814604]
[1722418623000,0.05304533,66405.0,66404.0,0.39873904]
[1722418623206,0.00792613,66405.0,66404.0,1.00111104]
[1722418623431,0.00792613,66405.0,66404.0,1.15851104]
[1722418623615,0.00792613,66405.0,66404.0,1.90603505]
[1722418623974,0.001,66414.0,66413.0,0.896662]
[1722418624183,0.001,66414.0,66413.0,1.04729504]
[1722418626404,0.001,66414.0,66413.0,1.05629504]
[1722418627375,0.001,66414.0,66413.0,0.75515004]
[1722418627581,0.001,66414.0,66413.0,0.69405004]
[1722418627795,0.001,66414.0,66413.0,0.70205004]
[1722418628891,0.001,66414.0,66413.0,1.00319504]
[1722418632647,0.001,66414.0,66413.0,0.70205004]
[1722418634619,0.001,66414.0,66413.0,0.70808304]
[1722418644385,0.001,66414.0,66413.0,1.00922804]
[1722418645110,0.001,66414.0,66413.0,0.70808304]
[1722418645449,0.001,66414.0,66413.0,1.00922804]
[1722418646270,0.001,66414.0,66413.0,1.32037304]
[1722418647238,0.001,66414.0,66413.0,1.01022804]
[1722418647441,0.001,66414.0,66413.0,0.99222804]
[1722418647617,0.0090265,66414.0,66413.0,1.00622804]
[1722418648031,0.001,66414.0,66413.0,1.00622804]
[1722418648876,0.001,66414.0,66413.0,0.70508304]
[1722418649078,0.001,66414.0,66413.0,0.62238304]
[1722418649293,0.001,66414.0,66413.0,0.63638304]
[1722418649652,0.001,66414.0,66413.0,0.93752804]
[1722418649873,0.001,66414.0,66413.0,0.63638304]
[1722418651208,0.001,66414.0,66413.0,0.71448304]
[1722418652020,0.001,66414.0,66413.0,0.63638304]
[1722418652423,0.00902647,66414.0,66413.0,0.63638304]
[1722418652629,0.001,66414.0,66413.0,0.76152741]
[1722418655023,0.1447,66414.0,66413.0,0.76152741]
[1722418655450,0.15272675,66414.0,66413.0,0.76152741]
[1722418656134,0.15272675,66414.0,66413.0,0.46038241]
[1722418656565,0.15272675,66414.0,66413.0,0.76152741]
[1722418656940,0.1447,66414.0,66413.0,0.46038241]
[1722418657338,0.15272956,66414.0,66413.0,0.46038241]
[1722418658406,0.15272956,66414.0,66413.0,0.18466604]
[1722418658642,0.15272956,66414.0,66413.0,0.33523804]
[1722418659246,0.15272956,66414.0,66413.0,0.18466604]
[1722418659653,0.30329956,66414.0,66413.0,0.18466604]
[1722418660211,0.15272956,66414.0,66413.0,0.18466604]
[1722418660410,0.19776994,66414.0,66413.0,0.18466604]
[1722418660650,0.34833994,66414.0,66413.0,0.18466604]
[1722418661199,0.34835055,66414.0,66413.0,0.18466604]
[1722418661433,0.95063255,66414.0,66413.0,0.18466604]
[1722418661642,0.99568354,66414.0,66413.0,0.18466604]
[1722418661844,0.90558156,66414.0,66413.0,0.18466604]
[1722418662057,1.04810787,66414.0,66413.0,0.18466604]
[1722418662263,0.9354701,66414.0,66413.0,0.18466604]
[1722418662465,0.9354701,66414.0,66413.0,0.17066604]
[1722418662681,1.04811582,66414.0,66413.0,0.18466604]
[1722418662892,1.04811582,66414.0,66413.0,0.17066604]
[1722418663298,0.9354701,66414.0,66413.0,0.17066604]
[1722418663499,0.9354701,66414.0,66413.0,0.16463304]
[1722418663701,0.90558156,66414.0,66413.0,0.16463304]
[1722418663903,0.90558156,66414.0,66413.0,0.014]
[1722418664518,1.20672256,66414.0,66413.0,0.028]
[1722418665604,1.29302256,66414.0,66413.0,0.028]
[1722418667400,0.99188156,66414.0,66413.0,0.028]
[1722418667803,1.00074717,66414.0,66413.0,0.028]
[1722418669016,1.00074717,66414.0,66413.0,0.028913]
[1722418673802,0.61330617,66414.0,66413.0,0.028913]
[1722418674057,0.69960617,66414.0,66413.0,0.028913]
[1722418675686,0.00902956,66414.0,66413.0,0.25624604]
[1722418676037,0.00902956,66414.0,66413.0,0.40681804]
[1722418676227,0.00902956,66414.0,66413.0,0.70796304]
[1722418678501,0.05410267,66414.0,66413.0,0.40681804]
[1722418679123,0.00902956,66414.0,66413.0,0.40681804]
[1722418679453,0.05410267,66414.0,66413.0,0.40681804]
[1722418679651,0.00902956,66414.0,66413.0,0.40681804]
[1722418680259,0.05410267,66414.0,66413.0,0.40681804]
[1722418680680,0.00902956,66414.0,66413.0,0.40681804]
[1722418681346,0.00902956,66414.0,66413.0,0.70796304]
[1722418681601,0.001,66414.0,66413.0,0.70796304]
[1722418681727,0.00894232,66414.0,66413.0,0.40681804]
[1722418681925,0.00894232,66414.0,66413.0,0.70796304]
[1722418682127,0.00894232,66414.0,66413.0,0.40681804]
[1722418682326,0.00894232,66414.0,66413.0,0.70796304]
[1722418682880,0.00894232,66414.0,66413.0,0.40681804]
[1722418683627,0.05401789,66414.0,66413.0,0.40681804]
[1722418684052,0.00894232,66414.0,66413.0,0.40681804]
[1722418684836,0.00894232,66414.0,66413.0,1.46225304]
[1722418685040,0.00894232,66414.0,66413.0,1.47225304]
[1722418685278,0.001,66414.0,66413.0,1.59739207]
[1722418685483,0.001,66414.0,66413.0,2.01853707]
[1722418685688,0.001,66414.0,66413.0,2.00452437]
[1722418685911,0.001,66414.0,66413.0,2.00652481]
[1722418686124,0.001,66414.0,66413.0,2.02952481]
[1722418686337,0.001,66414.0,66413.0,2.05230838]
[1722418686772,0.001,66414.0,66413.0,2.03830838]
[1722418687600,0.001,66414.0,66413.0,2.05230838]
[1722418688845,0.001,66414.0,66413.0,1.92718772]
[1722418689159,0.001,66414.0,66413.0,2.03830187]
[1722418689984,0.001,66414.0,66413.0,2.05230187]
[1722418692267,0.001,66414.0,66413.0,2.03030182]
[1722418692408,0.001,66414.0,66413.0,1.92100182]
[1722418693008,0.001,66414.0,66413.0,2.02730182]
[1722418693468,0.001,66414.0,66413.0,1.90418772]
[1722418693669,0.001,66414.0,66413.0,2.02930387]
[1722418695656,0.001,66414.0,66413.0,2.05230387]
[1722418698950,0.001,66414.0,66413.0,2.05230313]
[1722418701561,0.001,66414.0,66413.0,2.03030313]
[1722418701955,0.001,66414.0,66413.0,1.87830313]
[1722418702157,0.001,66414.0,66413.0,1.75318772]
[1722418702363,0.001,66414.0,66413.0,1.87830332]
[1722418704802,0.001,66414.0,66413.0,1.55415832]
[1722418705545,0.001,66414.0,66413.0,1.55416312]
[1722418708902,0.001,66414.0,66413.0,1.55416003]
[1722418712181,0.001,66414.0,66413.0,1.5541616]
[1722418715245,0.001,66414.0,66413.0,1.7914953]
[1722418715452,0.001,66414.0,66413.0,1.5541616]
[1722418715692,0.001,66414.0,66413.0,1.55416493]
[1722418715861,0.001,66414.0,66413.0,1.79141744]
[1722418717359,0.001,66414.0,66413.0,1.55416493]
[1722418717565,0.001,66414.0,66413.0,1.42904272]
[1722418717739,0.001,66414.0,66413.0,1.5541653]
[1722418718355,0.001,66414.0,66413.0,1.79126466]
[1722418719121,0.001,66414.0,66413.0,1.79124382]
[1722418719328,0.001,66414.0,66413.0,1.64046471]
[1722418719810,0.001,66414.0,66413.0,1.89747773]
[1722418720023,0.001,66414.0,66413.0,1.87747773]
[1722418721384,0.001,66414.0,66413.0,1.64046471]
[1722418721629,0.001,66414.0,66413.0,1.66246471]
[1722418721861,0.001,66414.0,66413.0,1.89932945]
[1722418722647,0.001,66414.0,66413.0,1.89932683]
[1722418723293,0.001,66414.0,66413.0,1.87732683]
[1722418723733,0.001,66414.0,66413.0,1.6404636]
[1722418724529,0.001,66414.0,66413.0,1.4774636]
[1722418725054,0.001,66414.0,66413.0,1.71429325]
[1722418725450,0.001,66414.0,66413.0,1.4774636]
[1722418725866,0.001,66414.0,66413.0,1.35234272]
[1722418726080,0.001,66414.0,66413.0,1.47746761]
[1722418729308,0.001,66414.0,66413.0,1.35234272]
[1722418729642,0.001,66414.0,66413.0,1.47746483]
[1722418729851,0.001,66414.0,66413.0,1.7142011]
[1722418730054,0.001,66414.0,66413.0,1.47746483]
[1722418730256,0.001,66414.0,66413.0,1.7142011]
[1722418731456,0.001,66414.0,66413.0,1.47746483]
[1722418731653,0.001,66414.0,66413.0,1.47746466]
[1722418732215,0.001,66414.0,66413.0,1.71417045]
[1722418732833,0.001,66414.0,66413.0,1.71416828]
[1722418733243,0.001,66414.0,66413.0,1.47746375]
[1722418733867,0.001,66414.0,66413.0,1.71413514]
[1722418735314,0.001,66414.0,66413.0,1.47746375]
[1722418735513,0.001,66414.0,66413.0,1.71407843]
[1722418736226,0.001,66414.0,66413.0,1.71404485]
[1722418737736,0.001,66414.0,66413.0,1.73404485]
[1722418737938,0.001,66414.0,66413.0,1.74754735]
[1722418739601,0.001,66414.0,66413.0,1.7475557]
[1722418741907,0.001,66414.0,66413.0,1.6612557]
[1722418742155,0.0652,66414.0,66413.0,1.6612557]
[1722418742377,0.0652,66414.0,66413.0,1.47746318]
[1722418742549,0.0652,66414.0,66413.0,1.17631818]
[1722418743075,0.0652,66414.0,66413.0,1.05119772]
[1722418743279,0.0652,66414.0,66413.0,1.16632857]
[1722418743280,0.1461,66414.0,66413.0,1.16632857]
[1722418746606,0.1461,66414.0,66413.0,1.16632639]
[1722418747659,0.0652,66414.0,66413.0,1.16632639]
[1722418748705,0.001,66414.0,66413.0,1.24832639]
[1722418748834,0.001,66414.0,66413.0,1.25832639]
[1722418749036,0.001,66414.0,66413.0,1.17632639]
[1722418749437,0.001,66414.0,66413.0,1.47747139]
[1722418749789,0.001,66414.0,66413.0,1.35234272]
[1722418749969,0.001,66414.0,66413.0,1.47746851]
[1722418750990,0.0627,66414.0,66413.0,1.47746851]
[1722418753196,0.0627,66414.0,66413.0,1.17632351]
[1722418753367,0.0627,66414.0,66413.0,1.17632353]
[1722418753568,0.0627,66414.0,66413.0,1.47746853]
[1722418754716,0.0627,66414.0,66413.0,1.17632353]
[1722418754957,0.0627,66414.0,66413.0,1.16632353]
[1722418755188,0.1419,66414.0,66413.0,1.16632353]
[1722418755633,0.1419,66414.0,66413.0,0.86517853]
[1722418755967,0.1419,66414.0,66413.0,0.85638885]
[1722418756757,0.1419,66414.0,66413.0,1.14353931]
[1722418757141,0.1419,66414.0,66413.0,1.15753931]
[1722418758624,0.1409,66414.0,66413.0,0.40467731]
[1722418759301,0.1409,66414.0,66413.0,0.85639431]
[1722418761318,0.1409,66414.0,66413.0,1.15753931]
[1722418762289,0.0617,66414.0,66413.0,1.15753931]
[1722418762907,0.00083,66415.0,66414.0,0.762852]
[1722418763114,0.00083,66415.0,66414.0,1.11591631]
[1722418763309,0.00083,66415.0,66414.0,1.41705731]
[1722418763975,0.00083,66415.0,66414.0,1.33975731]
[1722418764412,0.00083,66415.0,66414.0,1.35375731]
[1722418765072,0.13823,66415.0,66414.0,1.05261631]
[1722418765699,0.13823,66415.0,66414.0,1.06661631]
[1722418766747,0.13823,66415.0,66414.0,0.93148504]
[1722418766997,0.13823,66415.0,66414.0,1.05661727]
[1722418768323,0.13823,66415.0,66414.0,1.06661727]
[1722418768553,0.06223,66415.0,66414.0,1.06661727]
[1722418770291,0.06223,66415.0,66414.0,0.94148504]
[1722418770430,0.06223,66415.0,66414.0,1.06661708]
[1722418771398,0.00083,66415.0,66414.0,1.45035808]
[1722418773655,0.00083,66415.0,66414.0,1.45035258]
[1722418777062,0.00083,66415.0,66414.0,1.32522604]
[1722418777266,0.00083,66415.0,66414.0,1.45035258]
[1722418777424,0.00083,66415.0,66414.0,1.4503526]
[1722418777629,0.04514915,66425.0,66423.0,0.150549]
[1722418777910,0.04514915,66425.0,66424.0,0.15063304]
[1722418778098,0.06772372,66428.0,66424.0,0.15063304]
[1722418778099,0.04514915,66426.0,66424.0,0.15063304]
[1722418778715,0.00091299,66425.0,66424.0,0.15063304]
[1722418779170,0.00091299,66425.0,66424.0,0.60227504]
[1722418779617,0.00921671,66430.0,66425.0,0.150545]
[1722418779840,0.06772622,66428.0,66426.0,0.15063304]
[1722418780811,0.0637,66427.0,66426.0,0.752715]
[1722418781036,0.0637,66427.0,66426.0,0.835015]
[1722418782084,0.0637,66427.0,66426.0,0.90334804]
[1722418782520,0.0637,66427.0,66426.0,0.91734804]
[1722418783377,0.0637,66427.0,66426.0,0.93134804]
[1722418786563,0.04513461,66429.0,66428.0,0.451615]
[1722418786564,0.10603461,66429.0,66428.0,0.451615]
[1722418786767,0.10603461,66429.0,66428.0,0.60224804]
[1722418787397,0.0609,66429.0,66428.0,0.60224804]
[1722418787803,0.0609,66429.0,66428.0,0.31517104]
[1722418787987,0.0609,66429.0,66428.0,0.32917104]
[1722418788787,0.06176351,66429.0,66428.0,0.32917104]
[1722418790372,0.22806351,66429.0,66428.0,0.17863304]
[1722418790528,0.31833864,66429.0,66428.0,0.17863304]
[1722418790727,0.2272,66429.0,66428.0,0.17863304]
[1722418790902,0.31748286,66429.0,66428.0,0.17863304]
[1722418792303,0.76909186,66429.0,66428.0,0.17863304]
[1722418792451,0.678809,66429.0,66428.0,0.17863304]
[1722418792832,0.79166258,66429.0,66428.0,0.17863304]
[1722418793059,1.09273558,66429.0,66428.0,0.17863304]
[1722418793297,1.280955,66429.0,66428.0,0.028]
[1722418793653,1.31322059,66429.0,66428.0,0.028]